bitfinex/quotes_ETHUSD_20250413
["timestamp","ask_amount","ask_price","bid_price","bid_amount"]
[1744522227754,13.947151,1607.4,1607.0,6.22259]
[1744522227956,0.14277469,1607.3,1607.0,6.22259]
[1744522228159,13.947151,1607.4,1607.0,6.22259]
[1744522228584,0.14277469,1607.3,1607.0,6.22259]
[1744522228883,13.947151,1607.4,1607.0,6.22259]
[1744522229051,0.1422099,1607.2,1607.0,12.44524]
[1744522229246,13.947151,1607.4,1607.0,6.22259]
[1744522229447,0.14164504,1607.1,1607.0,6.22259]
[1744522229683,20.168631,1607.4,1607.0,6.22259]
[1744522229851,0.14164504,1607.1,1607.0,6.22277]
[1744522230046,10.947151,1607.4,1607.0,12.44554]
[1744522230243,0.14233127,1607.1,1607.0,6.22277]
[1744522230488,17.168601,1607.4,1607.0,6.22277]
[1744522230675,0.14233127,1607.1,1607.0,6.22277]
[1744522230880,17.168601,1607.4,1607.0,6.22277]
[1744522231066,0.14233127,1607.1,1607.0,6.22277]
[1744522231390,17.168601,1607.4,1607.0,6.22277]
[1744522231684,0.14233127,1607.1,1607.0,6.22277]
[1744522231886,13.21338,1607.4,1607.0,6.22277]
[1744522232074,0.14233127,1607.1,1607.0,6.22277]
[1744522232249,0.7707,1607.4,1607.1,6.22238]
[1744522233800,0.02,1607.4,1607.3,6.22161]
[1744522234090,0.02,1607.4,1607.3,7.04731]
[1744522234788,0.02,1607.4,1607.2,6.22183]
[1744522235696,0.02,1607.4,1607.2,12.44365]
[1744522236059,0.02,1607.4,1607.2,13.770585]
[1744522236356,0.02,1607.4,1607.3,6.22161]
[1744522237093,0.02,1607.4,1607.2,6.22182]
[1744522237391,0.7518,1607.3,1607.0,18.5152848]
[1744522237550,0.02,1607.4,1607.1,6.22215]
[1744522237747,0.02,1607.4,1607.1,12.4444]
[1744522238690,0.02,1607.4,1607.1,13.2226]
[1744522242409,0.02,1607.4,1607.2,0.8303]
[1744522242711,0.02,1607.4,1607.2,7.05227]
[1744522245206,0.02,1607.4,1607.3,6.22161]
[1744522245412,0.02,1607.4,1607.2,8.21624932]
[1744522245611,0.02,1607.4,1607.2,7.05227]
[1744522245807,0.02,1607.4,1607.2,13.27414]
[1744522246506,0.02,1607.4,1607.2,7.05217]
[1744522246713,0.12221895,1607.3,1607.2,7.05217]
[1744522247517,0.8021,1607.4,1607.1,6.22231]
[1744522247680,0.12221895,1607.3,1607.1,6.22231]
[1744522247881,0.12221895,1607.3,1607.1,12.44452]
[1744522248209,0.8021,1607.4,1607.1,6.22221]
[1744522248380,0.12174829,1607.2,1607.1,6.22221]
[1744522248575,0.8021,1607.4,1607.1,6.22221]
[1744522248776,0.12221895,1607.3,1607.1,6.22221]
[1744522249116,0.8021,1607.4,1607.1,6.22221]
[1744522249282,0.12174829,1607.2,1607.0,13.22084]
[1744522249615,0.8021,1607.4,1607.1,12.44476]
[1744522249788,0.02,1607.4,1607.1,6.22238]
[1744522249987,0.02,1607.4,1607.2,6.22195]
[1744522252825,0.02,1607.4,1607.1,6.22238]
[1744522253826,6.24127,1607.4,1607.1,6.22238]
[1744522254115,6.24127,1607.4,1606.6,6.795]
[1744522254116,0.8202,1607.1,1606.7,6.22389]
[1744522254313,7.04282,1607.1,1606.7,6.22389]
[1744522255105,13.26544,1607.1,1606.7,6.22389]
[1744522255700,6.22278,1607.0,1606.7,6.22389]
[1744522256282,6.22262,1607.1,1606.8,0.7879]
[1744522256482,7.467088,1607.1,1606.8,0.7879]
[1744522256922,7.467088,1607.1,1606.7,13.23553]
[1744522256923,8.287288,1607.1,1606.7,13.23553]
[1744522258123,8.287288,1607.1,1606.8,6.22351]
[1744522260919,8.287288,1607.1,1606.7,7.01164]
[1744522261422,8.287288,1607.1,1606.7,13.23543]
[1744522261580,0.14451083,1607.0,1606.7,13.23543]
[1744522262801,0.14451083,1607.0,1606.7,7.01164]
[1744522264186,6.22337,1606.9,1606.4,6.22506]
[1744522264392,0.8196,1606.8,1606.5,6.22447]
[1744522264621,0.8196,1606.9,1606.6,7.04918]
[1744522264918,0.8196,1606.9,1606.6,13.27336]
[1744522265097,0.99424305,1606.9,1606.6,13.27336]
[1744522266931,0.17464305,1606.9,1606.8,6.22354]
[1744522267297,0.8196,1607.1,1606.8,12.44708]
[1744522267498,0.17454143,1606.9,1606.8,12.44708]
[1744522267693,0.8196,1607.1,1606.8,12.44708]
[1744522267938,0.17464305,1606.9,1606.7,6.22382]
[1744522268149,7.04215,1607.1,1606.7,6.22382]
[1744522268433,0.8263,1606.9,1606.6,6.22419]
[1744522268933,0.17464305,1606.9,1606.6,0.7702]
[1744522269113,0.17464305,1606.9,1606.8,6.22352]
[1744522269313,7.04882,1607.1,1606.8,6.22352]
[1744522269553,0.17464305,1606.9,1606.8,6.22352]
[1744522269720,7.04882,1607.1,1606.8,6.22352]
[1744522270040,8.375919,1607.1,1606.8,6.22352]
[1744522270207,0.1753493,1607.0,1606.8,6.22352]
[1744522270739,6.3981393,1607.0,1606.6,6.99451]
[1744522270901,6.22386,1606.8,1606.4,13.0651548]
[1744522271101,0.8263,1606.7,1606.4,12.2949548]
[1744522271532,6.22322,1606.9,1606.4,6.0699948]
[1744522271732,0.8263,1606.9,1606.6,6.22394]
[1744522271928,0.8263,1607.0,1606.7,6.22367]
[1744522272121,0.17464305,1606.9,1606.7,12.44735]
[1744522272443,0.17464305,1606.9,1606.7,12.44742]
[1744522272619,0.17464305,1606.9,1606.7,6.22367]
[1744522273439,0.17464305,1606.9,1606.7,12.44744]
[1744522274343,0.17464305,1606.9,1606.7,12.44742]
[1744522275145,0.17464305,1606.9,1606.8,6.22354]
[1744522275333,0.8066,1607.2,1606.9,6.22282]
[1744522275536,0.8066,1607.2,1607.0,6.22275]
[1744522275839,0.8066,1607.3,1607.0,12.44531]
[1744522276142,1.82864139,1607.3,1607.0,6.22256]
[1744522276306,8.05026139,1607.3,1607.0,6.22256]
[1744522276643,0.17676154,1607.2,1606.9,7.01433]
[1744522277001,0.17676154,1607.2,1607.1,6.22238]
[1744522277206,0.02,1607.4,1607.3,6.22161]
[1744522277505,0.19817343,1607.4,1607.3,6.99481]
[1744522277926,0.13679134,1607.4,1607.3,6.99481]
[1744522278146,0.13679134,1607.4,1607.3,8.316474]
[1744522280347,0.13679134,1607.4,1607.3,11.316474]
[1744522280842,0.02,1607.4,1607.3,13.52938055]
[1744522282413,1e-05,1607.4,1607.3,20.14937535]
[1744522283349,5.2e-06,1607.5,1607.4,9.98492]
[1744522283511,5.2e-06,1607.5,1607.4,21.61593609]
[1744522284023,4.525221,1608.4,1607.4,21.61593609]
[1744522284024,4.525221,1608.4,1608.3,6.98144]
[1744522284613,4.64403948,1608.4,1608.3,9.98144]
[1744522285352,4.64403948,1608.4,1608.3,10.45773712]
[1744522286057,0.57,1608.4,1608.3,16.52773192]
[1744522286209,0.57,1608.4,1608.3,19.02359277]
[1744522287110,0.57,1608.4,1608.3,19.57359277]
[1744522287353,1e-05,1608.4,1608.3,19.57359277]
[1744522290531,1e-05,1608.4,1608.3,26.33859277]
[1744522291646,0.3901952,1609.1,1609.0,6.21504]
[1744522291977,0.3901952,1609.1,1609.0,7.458073]
[1744522293033,0.56828277,1609.1,1609.0,7.458073]
[1744522297379,0.56828277,1609.1,1609.0,7.93192544]
[1744522297562,0.56828277,1609.1,1609.0,8.72462544]
[1744522297872,0.51719823,1609.1,1609.0,8.72462544]
[1744522298673,0.51719823,1609.1,1609.0,17.79462024]
[1744522299592,0.3901952,1609.1,1609.0,17.79462024]
[1744522300156,0.3901952,1609.1,1609.0,18.34462024]
[1744522301376,5.2e-06,1609.1,1609.0,18.34462024]
[1744522301678,5.2e-06,1609.1,1609.0,20.00752679]
[1744522301876,5.2e-06,1609.1,1609.0,20.55752679]
[1744522303908,5.2e-06,1609.1,1609.0,20.00752679]
[1744522304080,5.2e-06,1609.1,1609.0,20.55752679]
[1744522305791,5.2e-06,1609.1,1609.0,27.31852679]
[1744522307409,5.2e-06,1609.1,1609.0,28.02189646]
[1744522307622,5.2e-06,1609.4,1609.3,6.76388]
[1744522307797,5.2e-06,1609.4,1609.3,14.07358455]
[1744522308113,5.2e-06,1609.4,1609.3,20.14357935]
[1744522309575,6.20968,1610.4,1610.3,6.21002]
[1744522309576,1e-05,1610.4,1610.3,6.21002]
[1744522309775,0.7982,1610.3,1610.1,6.21062]
[1744522310181,0.7982,1610.3,1610.0,6.21113]
[1744522310381,0.17950142,1610.2,1610.0,6.21096]
[1744522310595,0.17950142,1610.2,1610.1,6.21079]
[1744522311511,0.17950142,1610.2,1610.1,6.21064]
[1744522311671,0.17950142,1610.2,1610.0,6.21096]
[1744522311871,0.17950142,1610.2,1609.8,6.21179]
[1744522311872,0.7982,1610.1,1609.8,6.21179]
[1744522312132,0.7982,1610.1,1610.0,6.21118]
[1744522312501,1e-05,1610.4,1609.9,6.21141]
[1744522312720,1e-05,1610.4,1610.3,6.21002]
[1744522312898,13.20725,1611.7,1611.2,6.20643]
[1744522313073,6.11,1611.9,1610.4,0.8183]
[1744522313074,0.7974,1611.3,1611.1,6.20675]
[1744522313273,0.7974,1611.3,1611.1,6.20686]
[1744522313499,0.7974,1611.3,1610.7,6.20845]
[1744522313709,0.7974,1611.1,1610.8,9.20804]
[1744522314013,0.7974,1611.1,1611.0,6.20732]
[1744522314185,0.7974,1611.1,1610.7,6.20846]
[1744522314387,0.7974,1611.0,1610.7,6.20846]
[1744522314805,1.497837,1611.0,1610.7,6.20846]
[1744522315008,1.497837,1611.0,1610.6,2.21290655]
[1744522315176,1.497837,1611.0,1610.7,6.20817]
[1744522315177,0.7974,1611.0,1610.7,6.20817]
[1744522315702,0.7974,1611.0,1610.6,6.20884]
[1744522315896,0.7974,1611.0,1610.8,6.20804]
[1744522316073,0.7974,1611.0,1610.7,6.20826]
[1744522316490,0.7974,1611.0,1610.8,6.20785]
[1744522316692,0.7974,1611.0,1610.9,6.2077]
[1744522316878,0.7974,1611.0,1610.8,6.20785]
[1744522317077,0.7974,1611.0,1610.7,6.20846]
[1744522317313,0.7974,1611.0,1610.8,6.20777]
[1744522317481,0.7974,1611.0,1610.9,6.2077]
[1744522320115,0.8156,1611.4,1610.9,1.241547]
[1744522320319,0.8156,1611.4,1611.3,6.20616]
[1744522320709,0.02,1611.4,1611.3,6.20616]
[1744522321418,0.8156,1611.4,1611.2,6.20653]
[1744522321622,0.8156,1611.4,1611.2,6.20631]
[1744522321830,0.02,1611.4,1611.3,6.20616]
[1744522322150,0.02,1611.4,1611.2,6.20631]
[1744522322325,0.02,1611.4,1611.2,12.41269]
[1744522322521,0.81,1611.3,1611.1,6.20675]
[1744522322885,0.81,1611.3,1611.1,12.41344]
[1744522323084,0.81,1611.3,1611.1,12.41348]
[1744522323279,0.81,1611.3,1611.1,6.20669]
[1744522323499,0.81,1611.3,1611.0,6.20728]
[1744522323986,0.81,1611.3,1610.9,9.744]
[1744522324184,0.81,1611.3,1611.1,6.20685]
[1744522324401,0.81,1611.3,1611.0,6.20722]
[1744522324720,0.81,1611.3,1611.0,12.4143]
[1744522324923,0.81,1611.3,1610.6,65.21190655]
[1744522325124,0.81,1611.1,1610.8,6.20789]
[1744522325287,0.81,1611.1,1610.9,6.20767]
[1744522325490,0.81,1611.1,1610.8,6.20789]
[1744522326355,7.0174,1611.0,1610.6,9.20877]
[1744522326498,6.20808,1610.9,1610.4,6.20939]
[1744522326704,0.81,1610.8,1610.5,6.20901]
[1744522326904,0.81,1610.8,1610.6,6.20871]
[1744522327337,0.81,1610.8,1610.6,12.41735]
[1744522327561,0.81,1610.8,1610.6,6.20864]
[1744522327853,0.17481352,1610.7,1610.6,6.20864]
[1744522329131,0.17481352,1610.7,1610.5,6.20923]
[1744522329352,0.17481352,1610.7,1610.5,6.20909]
[1744522329943,0.17481352,1610.7,1610.4,8.42252655]
[1744522330149,0.17481352,1610.7,1610.4,6.20962]
[1744522330447,0.17481352,1610.7,1610.4,12.41902]
[1744522331550,0.17481352,1610.7,1610.4,6.2094]
[1744522331848,0.7532,1610.6,1610.2,6.2103]
[1744522332053,0.7532,1610.4,1610.0,12.2811148]
[1744522332261,6.96298,1610.4,1610.0,12.42214]
[1744522332412,6.96298,1610.4,1610.0,6.21099]
[1744522332749,6.21005,1610.3,1609.9,19.868911]
[1744522332953,6.21005,1610.3,1609.9,6.914381]
[1744522333133,6.96362,1610.2,1609.8,18.4937948]
[1744522333318,6.96362,1610.2,1609.9,6.21153]
[1744522333537,6.21082,1610.1,1609.8,12.2818948]
[1744522333736,6.21082,1610.1,1609.8,6.0699948]
[1744522333934,6.21082,1610.1,1609.6,12.2826548]
[1744522334161,0.621082,1610.0,1609.6,12.42517]
[1744522334337,6.21155,1610.0,1609.6,12.42517]
[1744522334535,6.96411,1610.1,1609.7,6.2123]
[1744522335358,12.42357,1609.9,1609.5,6.21305]
[1744522335565,6.21174,1609.9,1609.5,12.42593]
[1744522335870,6.21174,1609.9,1609.5,6.21288]
[1744522336243,6.96439,1610.0,1609.6,6.21272]
[1744522336648,13.17584,1610.0,1609.6,6.21272]
[1744522336862,6.21169,1609.9,1609.5,6.2131]
[1744522337042,6.21169,1609.9,1609.4,6.21347]
[1744522337043,6.21196,1609.8,1609.4,6.21347]
[1744522337248,0.7532,1609.7,1609.4,8.58449314]
[1744522337531,0.7532,1609.7,1609.4,14.79777314]
[1744522338169,0.7532,1609.7,1609.5,6.21303]
[1744522338467,0.7532,1609.7,1609.5,6.21296]
[1744522343480,0.7532,1609.7,1609.5,6.21309]
[1744522344703,0.7532,1609.7,1609.4,17.79794314]
[1744522344982,0.7532,1609.7,1609.4,11.58448314]
[1744522345149,0.7532,1609.7,1609.4,11.58434314]
[1744522346048,6.96573,1609.7,1609.3,6.21385]
[1744522346255,6.96573,1609.7,1609.2,13.74821]
[1744522346256,6.21307,1609.6,1609.2,13.74821]
[1744522346552,6.21307,1609.6,1609.2,19.96228]
[1744522346961,6.21307,1609.6,1609.3,6.21385]
[1744522352000,13.17812,1609.7,1609.3,6.21371]
[1744522352602,6.21276,1609.6,1609.3,6.21371]
[1744522353197,13.743675,1609.6,1609.2,12.95826]
[1744522353406,6.21314,1609.5,1609.2,6.21413]
[1744522354298,7.530595,1609.6,1609.2,6.21413]
[1744522354601,13.743695,1609.6,1609.2,6.21413]
[1744522355013,6.21375,1609.4,1609.0,6.21498]
[1744522355297,6.97024,1609.3,1609.0,6.21498]
[1744522355905,1.3743695,1609.5,1608.4,0.8295]
[1744522355906,0.7563,1608.9,1608.4,0.8295]
[1744522356061,0.7563,1608.9,1608.6,6.21628]
[1744522356767,6.97174,1608.9,1608.5,6.21691]
[1744522356968,6.21601,1608.8,1608.4,6.21731]
[1744522357207,6.21601,1608.8,1608.4,7.460809]
[1744522358183,6.21621,1608.7,1608.4,6.21731]
[1744522358705,0.7563,1608.6,1608.4,6.21731]
[1744522359063,0.7563,1609.0,1608.7,6.21616]
[1744522359267,0.7563,1609.0,1608.8,6.21575]
[1744522359773,0.7563,1609.0,1608.7,6.21616]
[1744522359925,6.97161,1609.0,1608.6,12.4329]
[1744522360102,6.97161,1609.0,1608.6,13.98043065]
[1744522360518,13.18694,1609.0,1608.6,7.76389065]
[1744522360819,6.97161,1609.0,1608.6,13.98033065]
[1744522361623,6.97161,1609.0,1608.6,7.76389065]
[1744522362323,6.97161,1609.0,1608.6,13.98027065]
[1744522363642,6.97161,1609.0,1608.6,7.76389065]
[1744522365546,13.18693,1609.0,1608.6,7.76389065]
[1744522366540,6.21562,1608.9,1608.5,6.21681]
[1744522366849,0.7563,1609.0,1608.7,6.21604]
[1744522367340,0.7563,1609.0,1608.7,6.21602]
[1744522367740,6.21414,1609.3,1608.9,6.21542]
[1744522368039,0.7855,1609.2,1608.9,6.21542]
[1744522368235,6.21478,1609.1,1608.7,6.21593]
[1744522368405,12.42973,1609.1,1608.7,6.21593]
[1744522368839,0.7855,1609.0,1608.7,6.21593]
[1744522369219,13.21588,1609.0,1608.6,9.21656]
[1744522369419,13.21588,1609.0,1608.6,10.35950665]
[1744522369420,7.00057,1609.0,1608.6,10.35950665]
[1744522369631,6.21548,1608.9,1608.6,10.35950665]
[1744522370345,12.43119,1608.9,1608.5,6.21693]
[1744522371044,6.21548,1608.9,1608.5,12.43377]
[1744522372844,6.21548,1608.9,1608.4,7.4985]
[1744522372845,7.02722,1608.8,1608.4,12.4345]
[1744522375047,6.21639,1608.7,1608.3,22.18131]
[1744522375212,6.21639,1608.7,1608.4,6.21727]
[1744522377943,12.4328,1608.7,1608.3,19.18131]
[1744522378148,6.21639,1608.7,1608.3,19.18131]
[1744522378448,6.21639,1608.7,1608.3,21.78691048]
[1744522379880,12.43281,1608.7,1608.3,15.56921048]
[1744522380475,0.8032,1608.6,1608.3,15.56921048]
[1744522381071,6.21741,1608.4,1608.1,9.2385]
[1744522381272,7.03583,1608.3,1608.1,0.02]
[1744522381474,0.8179,1608.3,1608.1,0.02]
[1744522382341,7.03574,1608.3,1608.1,0.02]
[1744522383761,13.25374,1608.3,1608.1,0.02]
[1744522383972,14.579124,1608.3,1608.1,0.02]
[1744522384159,8.361114,1608.3,1608.1,0.02]
[1744522384489,2.143274,1608.3,1608.1,0.02]
[1744522384986,8.361064,1608.3,1608.1,0.02]
[1744522386171,0.8179,1608.3,1608.1,6.23841]
[1744522386382,0.8179,1608.3,1608.2,6.21813]
[1744522386687,0.8179,1608.3,1608.1,0.02]
[1744522386892,7.01653,1608.2,1608.1,0.02]
[1744522388296,0.7984,1608.2,1608.1,0.02]
[1744522388450,6.21739,1608.4,1608.1,0.02]
[1744522388655,7.01579,1608.4,1608.1,0.02]
[1744522389287,0.7984,1608.4,1608.1,7.48416]
[1744522389453,0.7984,1608.4,1608.2,6.21808]
[1744522390002,0.7984,1608.4,1608.1,7.48416]
[1744522390205,0.7984,1608.4,1608.1,6.23842]
[1744522391108,0.7984,1608.4,1608.1,6.23838]
[1744522391415,0.7984,1608.4,1608.2,6.21807]
[1744522391921,0.7984,1608.4,1608.1,6.23837]
[1744522392415,7.01589,1608.4,1608.1,0.02]
[1744522392579,0.701589,1608.3,1608.1,0.02]
[1744522393076,0.8227,1608.2,1608.1,0.02]
[1744522393274,7.04083,1608.2,1608.1,0.02]
[1744522399591,0.8227,1608.2,1608.1,0.02]
[1744522399991,7.04083,1608.2,1608.1,0.02]
[1744522400312,8.4368719,1608.2,1608.1,0.02]
[1744522403616,8.3880719,1608.2,1608.1,0.02]
[1744522405336,8.9380719,1608.2,1608.1,0.02]
[1744522405540,20.88897845,1608.2,1608.1,0.02]
[1744522408940,21.36524591,1608.2,1608.1,0.02]
[1744522409302,7.02001,1607.6,1607.4,0.55]
[1744522409507,6.22083,1607.5,1607.4,0.55]
[1744522410033,7.02013,1607.5,1607.4,0.55]
[1744522410812,10.57013,1607.5,1607.4,0.55]
[1744522414199,11.0299934,1607.5,1607.4,0.55]
[1744522414405,11.7315824,1607.5,1607.4,0.55]
[1744522415446,11.271719,1607.5,1607.4,0.55]
[1744522416145,10.721719,1607.5,1607.4,0.55]
[1744522416355,6.22071,1607.6,1607.4,0.55]
[1744522416531,12.44143,1607.6,1607.4,0.55]
[1744522416713,6.22071,1607.6,1607.4,0.55]
[1744522416918,6.22083,1607.5,1607.4,0.55]
[1744522418752,6.22071,1607.6,1607.4,0.55]
[1744522418964,8.218821,1607.6,1607.4,0.55]
[1744522419157,14.439541,1607.6,1607.4,0.55]
[1744522419333,6.22083,1607.5,1607.4,0.55]
[1744522420222,12.79793655,1607.5,1607.4,0.55]
[1744522424731,10.03503,1607.5,1607.4,0.55]
[1744522425029,11.6881133,1607.5,1607.4,0.55]
[1744522425235,7.3239133,1607.5,1607.4,0.55]
[1744522425419,9.22083,1607.5,1607.4,0.55]
[1744522428934,6.22083,1607.5,1607.4,0.55]
[1744522431373,19.18322,1607.6,1607.4,0.55]
[1744522431660,6.22083,1607.5,1607.4,0.55]
[1744522433272,12.96261,1607.6,1607.4,0.55]
[1744522433459,12.96261,1607.6,1607.5,0.8205]
[1744522433460,6.742,1607.6,1607.5,0.8205]
[1744522433964,12.96245,1607.6,1607.4,0.55]
[1744522434675,19.18326,1607.6,1607.4,0.55]
[1744522434976,6.22083,1607.5,1607.4,0.55]
[1744522435657,12.96245,1607.6,1607.4,0.55]
[1744522435863,19.18312,1607.6,1607.4,0.55]
[1744522438565,6.22083,1607.5,1607.4,0.55]
[1744522439766,7.52603,1607.5,1607.4,0.55]
[1744522439973,10.52603,1607.5,1607.4,0.55]
[1744522440437,11.00321197,1607.5,1607.4,0.55]
[1744522441775,10.5272,1607.2,1607.1,0.02]
[1744522441943,19.47510655,1607.2,1607.1,0.02]
[1744522443486,12.957,1607.2,1607.1,0.02]
[1744522443694,53.84218197,1607.5,1607.1,0.02]
[1744522443695,0.32461188,1607.5,1607.3,0.8205]
[1744522443856,6.22019,1607.7,1607.3,7.746315]
[1744522444044,6.22019,1607.7,1607.3,13.967755]
[1744522445079,6.22019,1607.7,1607.3,7.746185]
[1744522445676,12.44052,1607.7,1607.3,7.746185]
[1744522445878,12.95468,1607.8,1607.4,1.5951185]
[1744522446177,6.22023,1607.7,1607.4,0.8205]
[1744522446761,6.22047,1607.6,1607.4,0.8205]
[1744522447355,6.22012,1607.7,1607.4,0.8205]
[1744522447557,12.9547,1607.8,1607.4,7.04158]
[1744522447755,12.9547,1607.8,1607.4,0.8205]
[1744522448179,19.17466,1607.8,1607.4,7.04159]
[1744522448886,19.17466,1607.8,1607.5,6.22075]
[1744522448887,6.735,1607.8,1607.5,6.22075]
[1744522449187,6.21894,1608.0,1607.6,7.00653]
[1744522449382,6.21894,1608.0,1607.6,13.22677]
[1744522450358,6.21894,1608.0,1607.6,0.7863]
[1744522450687,6.21894,1608.0,1607.6,7.00654]
[1744522450983,6.21894,1608.0,1607.7,6.920694]
[1744522451989,19.1723,1608.1,1607.7,6.920694]
[1744522454901,6.735,1608.1,1607.8,0.8226]
[1744522455197,6.735,1608.1,1607.8,7.04211]
[1744522457963,6.735,1608.1,1608.0,0.7925]
[1744522458164,6.735,1608.1,1608.0,1.493678]
[1744522459903,53.37,1608.3,1608.1,6.21851]
[1744522460195,0.55,1608.6,1608.2,0.7925]
[1744522460196,6.733,1608.6,1608.2,0.7925]
[1744522460403,3.955221,1608.7,1608.4,6.21697]
[1744522460567,3.955221,1608.7,1608.5,6.838597]
[1744522460764,16.386401,1608.9,1608.6,0.7925]
[1744522461069,6.21601,1608.8,1608.6,0.7925]
[1744522461277,12.4321,1608.8,1608.4,7.00959]
[1744522461501,12.4321,1608.8,1608.4,8.332317]
[1744522462197,6.21601,1608.8,1608.4,14.549447]
[1744522462367,6.21601,1608.8,1608.4,8.332317]
[1744522462564,6.21601,1608.8,1608.5,6.21695]
[1744522463302,10.170661,1608.9,1608.5,6.21695]
[1744522463601,16.386331,1608.9,1608.5,6.21695]
[1744522463902,10.170661,1608.9,1608.5,7.6717667]
[1744522464066,10.170661,1608.9,1608.5,12.43367]
[1744522464271,6.21586,1608.8,1608.5,6.21683]
[1744522464594,6.21586,1608.8,1608.4,7.00982]
[1744522465082,6.21545,1608.9,1608.5,6.21683]
[1744522465898,6.21545,1608.9,1608.5,7.53948]
[1744522466499,6.21588,1608.8,1608.5,7.53948]
[1744522466902,6.21545,1608.9,1608.6,0.8319]
[1744522467105,66.30216,1609.0,1608.6,7.04847]
[1744522467310,60.087,1609.0,1608.6,0.8319]
[1744522467511,6.21566,1608.9,1608.6,0.8319]
[1744522467807,12.43136,1608.9,1608.6,0.8319]
[1744522468308,6.21566,1608.9,1608.6,0.8319]
[1744522468610,6.21566,1608.9,1608.6,7.885572]
[1744522469314,66.30207,1609.0,1608.6,14.102012]
[1744522469488,66.30207,1609.0,1608.7,6.21619]
[1744522469921,6.733,1609.0,1608.8,6.21565]
[1744522470086,6.733,1609.0,1608.9,0.8319]
[1744522470433,6.21431,1609.2,1608.9,2.15822]
[1744522470580,0.7669,1609.3,1609.1,6.2146]
[1744522470581,6.723,1609.3,1609.1,6.2146]
[1744522470783,6.723,1609.3,1609.2,0.8319]
[1744522471311,6.21277,1609.6,1609.3,6.21388]
[1744522471483,59.54637,1609.7,1609.4,6.21344]
[1744522472008,13.14663755,1609.9,1609.5,0.8319]
[1744522472189,16.889831,1609.9,1609.5,0.8319]
[1744522472391,16.889831,1609.9,1609.5,13.2578]
[1744522472791,10.166831,1609.9,1609.6,6.21272]
[1744522473089,10.166831,1609.9,1609.4,1.06926985]
[1744522473090,3.955221,1609.9,1609.8,7.04385]
[1744522473409,3.955221,1609.9,1609.8,0.8319]
[1744522473811,3.955221,1609.9,1609.6,0.8319]
[1744522474115,6.21223,1609.8,1609.6,0.8319]
[1744522474519,12.42447,1609.8,1609.4,7.04536]
[1744522474721,13.9502841,1609.9,1609.5,6.21297]
[1744522476014,6.21143,1610.0,1609.6,7.04443]
[1744522476212,6.21143,1610.0,1609.6,0.8319]
[1744522476417,6.7608,1610.1,1609.4,7.04538]
[1744522476641,6.21225,1609.8,1609.4,7.04538]
[1744522476797,6.21238,1609.7,1609.4,0.8319]
[1744522477122,13.047018,1609.6,1609.2,7.04614]
[1744522477280,6.833998,1609.6,1609.2,7.04614]
[1744522478915,6.2132,1609.5,1609.2,0.8319]
[1744522479097,12.42656,1609.5,1609.2,0.8319]
[1744522479797,6.21351,1609.4,1609.2,0.8319]
[1744522479996,7.456181,1609.4,1609.2,0.8319]
[1744522481321,7.456181,1609.4,1609.0,7.01663]
[1744522481499,1.242671,1609.4,1609.1,12.42899]
[1744522481798,6.21312,1609.5,1609.1,12.42899]
[1744522482021,13.047008,1609.6,1609.2,7.01591]
[1744522482889,12.42676,1609.5,1609.2,0.8018]
[1744522483089,6.2135,1609.4,1609.2,0.8018]
[1744522483295,7.00659,1609.5,1609.2,0.8018]
[1744522483485,0.700659,1609.4,1609.2,0.8018]
[1744522483827,6.914179,1609.4,1609.0,6.9659]
[1744522484139,13.127929,1609.4,1609.0,6.9659]
[1744522484814,6.914179,1609.4,1609.0,6.96574]
[1744522485031,6.914179,1609.4,1609.1,6.2146]
[1744522486720,0.6914179,1609.3,1609.1,6.2146]
[1744522486920,0.6914179,1609.3,1609.0,6.96574]
[1744522488422,6.9053179,1609.3,1609.0,6.96574]
[1744522488791,6.21483,1609.1,1608.8,7.02852]
[1744522488999,6.21483,1609.1,1608.8,0.8128]
[1744522489196,7.3027094,1609.1,1608.8,0.8128]
[1744522489398,13.5175694,1609.1,1608.8,0.8128]
[1744522490334,6.21504,1609.0,1608.8,0.8128]
[1744522490533,12.43034,1609.0,1608.6,7.02932]
[1744522490740,0.621238,1609.0,1608.6,0.8128]
[1744522490905,6.2153,1609.0,1608.6,6.21642]
[1744522491430,12.43056,1609.0,1608.6,6.21642]
[1744522491840,6.21595,1608.8,1608.4,7.02997]
[1744522492051,6.21595,1608.8,1608.4,13.24718]
[1744522492396,6.21595,1608.8,1608.5,6.21696]
[1744522492914,6.21568,1608.9,1608.5,6.21696]
[1744522493115,7.458756,1608.9,1608.5,6.21696]
[1744522493305,7.458756,1608.9,1608.5,12.43379]
[1744522493533,7.458756,1608.9,1608.6,6.21652]
[1744522493800,7.458746,1608.9,1608.4,7.02995]
[1744522494006,7.458746,1608.9,1608.6,6.21658]
[1744522495614,6.21507,1609.0,1608.6,12.43283]
[1744522496251,6.719,1609.1,1608.8,0.8]
[1744522496445,6.21433,1609.2,1608.8,7.01549]
[1744522496944,6.21471,1609.1,1608.7,6.21587]
[1744522497115,6.915981,1609.1,1608.7,6.21587]
[1744522497739,6.915981,1609.1,1608.8,6.21577]
[1744522498457,13.131001,1609.1,1608.7,6.21587]
[1744522498776,13.131001,1609.1,1608.6,0.8]
[1744522498777,6.21561,1608.9,1608.6,0.8]
[1744522498963,6.21537,1609.0,1608.6,7.01643]
[1744522499259,1.3131341,1609.0,1608.7,6.21609]
[1744522499960,6.915971,1609.1,1608.7,6.21601]